fUSD/lending_fUSD_20240917
["ID","MTS","AMOUNT","RATE_DAILY","PERIOD"]
[338372852,1726570238097,-153.22099425,0.000129,2]
[338372853,1726570238107,-1169.86150618,0.000129,2]
[338372854,1726570238116,-299.99,0.000129,2]
[338372855,1726570238125,-150.99,0.000129,2]
[338372856,1726570238134,-2951.56,0.000129,2]
[338372857,1726570238146,-438.0,0.000129,2]
[338372858,1726570238158,-2357.80715962,0.000129,2]
[338372859,1726570238168,-641.39826051,0.00012973,2]
[338372860,1726570238178,-247.33011491,0.00012973,2]
[338372861,1726570238188,-160.72194503,0.00012973,2]
[338372862,1726570238200,-500.0,0.00012973,2]
[338372863,1726570238210,-500.0,0.00012973,2]
[338372864,1726570238219,-500.0,0.00012973,2]
[338372865,1726570238229,-462.07,0.0001299,2]
[338372866,1726570238238,-500.0,0.00012999,2]
[338372867,1726570238247,-500.0,0.00012999,2]
[338372868,1726570238257,-500.0,0.00012999,2]
[338372869,1726570238266,-500.0,0.00012999,2]
[338372870,1726570238276,-500.0,0.00012999,2]
[338372871,1726570238287,-626.47706668,0.00012999,2]
[338372872,1726570238296,-500.0,0.00012999,2]
[338372873,1726570238305,-500.0,0.00012999,2]
[338372874,1726570238314,-500.0,0.00012999,2]
[338372875,1726570238324,-500.0,0.00012999,2]
[338372876,1726570238334,-15486.15253046,0.00013,2]
[338372878,1726570239033,-500.0,0.00013,2]
[338372879,1726570239064,-324.96367982,0.00013,2]
[338372880,1726570239076,-59508.3047301,0.00013,2]
[338372881,1726570239087,-5779.81155884,0.00013,2]
[338372882,1726570239105,-560.52361989,0.00013,2]
[338372883,1726570239116,-794.86802,0.00013,2]
[338372884,1726570239126,-2123.8997036,0.00013,2]
[338372885,1726570239137,-519.07829482,0.00013,2]
[338372886,1726570239180,-7279.41342549,0.00013,2]
[338372887,1726570239191,-9786.6181317,0.00013,2]
[338372888,1726570239632,302.92,0.00010959,2]
[338372895,1726570240377,-1347.16818987,0.00013,2]
[338372896,1726570240431,-19214.49675737,0.00013,2]
[338372897,1726570240442,-85703.10278957,0.00013,2]
[338372898,1726570241569,-0.81886859,0.00013,2]
[338372899,1726570241586,-765.68138899,0.00013,2]
[338372900,1726570241609,-3422.0802614,0.00013,2]
[338372914,1726570243028,-309.9682599,0.00013,2]
[338372915,1726570243040,-412.1753019,0.00013,2]
[338372916,1726570243051,-532.36550183,0.00013,2]
[338372917,1726570243062,-3455.53409534,0.00013,2]
[338372918,1726570243074,-397.66172814,0.00013,2]
[338372919,1726570243085,-709.17,0.00013,2]
[338372920,1726570243097,-4445.23740939,0.00013,2]
[338372921,1726570243108,-1103.1653179,0.00013,2]
[338372922,1726570243125,-340.89888429,0.00013,2]
[338372923,1726570243152,-363.33683964,0.00013,2]
[338372924,1726570243163,-4692.64900425,0.00013,2]
[338372925,1726570243174,-471.44131326,0.00013,2]
[338372926,1726570243185,-14460.26547633,0.00013,2]
[338372927,1726570243196,-1289.86282943,0.00013,2]
[338372928,1726570243208,-432.89653833,0.00013,2]
[338372929,1726570243219,-1117.28317245,0.00013,2]
[338372930,1726570243231,-3674.2143007,0.00013,2]
[338372931,1726570243242,-1023.82317081,0.00013,2]
[338372932,1726570243253,-767.14366818,0.00013,2]
[338372933,1726570243264,-589.37436581,0.00013,2]
[338372934,1726570243291,-1258067.11703425,0.00013,2]
[338372935,1726570243302,-674.41849746,0.00013,2]
[338372938,1726570243313,-12842.43697201,0.00013,2]
[338372940,1726570243324,-14265.34945311,0.00013,2]
[338372942,1726570243334,-2020.12,0.00013,2]
[338372944,1726570243345,-630.11740015,0.00013,2]
[338372946,1726570243355,-301.616,0.00013,2]
[338372949,1726570243366,-2005.80185951,0.00013,2]
[338372950,1726570243376,-2541.3138532,0.00013,2]
[338372951,1726570243387,-530.70724899,0.00013,2]
[338372952,1726570243402,-895.78987325,0.00013,2]
[338372953,1726570243412,-671.32315737,0.00013,2]
[338372954,1726570243423,-1098.75051472,0.00013,2]
[338372955,1726570243434,-606.65958486,0.00013,2]
[338372956,1726570243444,-636.87818,0.00013,2]
[338372957,1726570243456,-490.02685497,0.00013,2]
[338372958,1726570243467,-605.70812265,0.00013,2]
[338372959,1726570243478,-341.04,0.00013,2]
[338372960,1726570243489,-827.30933768,0.00013,2]
[338372961,1726570243499,-2754.31674355,0.00013,2]
[338372962,1726570243511,-4200.0,0.00013,2]
[338372963,1726570243615,-4202.89669979,0.00013,2]
[338372964,1726570244995,-1187.119996,0.00013,2]
[338372966,1726570246001,-891.94150928,0.00013,2]
[338372967,1726570246013,-1462.76416002,0.00013,2]
[338372968,1726570246024,-1000.0,0.00013,2]
[338372969,1726570246051,-10018.96925061,0.00013,2]
[338372970,1726570246063,-368.54684673,0.00013,2]
[338372971,1726570246076,-1373.16223695,0.00013,2]
[338372972,1726570246087,-13413.68580089,0.00013,2]
[338372973,1726570246099,-1657.21148328,0.00013,2]
[338372974,1726570246110,-376.58731798,0.00013,2]
[338372975,1726570246258,-285.60453231,0.00013,2]
[338372976,1726570246270,-16344.51668327,0.00013,2]
[338372977,1726570246282,-3678.56594504,0.00013,2]
[338372978,1726570246295,-442.82396974,0.00013,2]
[338372979,1726570246306,-462.25138963,0.00013,2]
[338372980,1726570246322,-109684.32219062,0.00013,2]
[338372981,1726570246338,-470.08,0.00013,2]
[338372982,1726570246349,-2064.39225517,0.00013,2]
[338372983,1726570246361,-86110.23799385,0.00013,2]
[338372984,1726570246380,-4643.55379647,0.00013,2]
[338372985,1726570246392,-3578.38314441,0.00013,2]
[338372986,1726570246404,-160032.32189795,0.00013,2]
[338372988,1726570251202,400.0,0.000126,4]
[338372989,1726570265647,500.0,0.00011164,2]
[338372990,1726570266011,545.83583097,0.00011164,2]
[338372991,1726570283208,150.12,0.00010959,2]
[338372992,1726570301550,512.12,0.00010959,2]
[338372993,1726570322466,903.32,0.00012616,2]
[338372994,1726570388777,11510.0,0.000126,5]
[338372995,1726570434699,2320.287875,0.00012573,2]
[338372996,1726570456764,1170.07,0.00012391,2]
[338372997,1726570464274,1683.03020128,0.000126,2]
[338372998,1726570464849,250.0,0.00012391,2]
[338372999,1726570496626,196.29,0.0001242,2]
[338373000,1726570516127,473.21,0.00010476,2]
[338373001,1726570537289,1050.0,0.00011,2]
[338373002,1726570567582,22147.14,0.00012277,2]
[338373003,1726570635995,200.0,0.00012315,2]
[338373004,1726570670647,528.63,0.00012315,2]
[338373006,1726570789655,250.0,0.00012288,2]
[338373007,1726570983713,421.39411001,0.00012605,2]
[338373008,1726571011429,250.0,0.00012412,2]
[338373011,1726571036219,257.61,0.00012455,2]
[338373014,1726571076482,-1466.786944,0.00012636,2]
[338373015,1726571076505,-800.0,0.000127,4]
[338373016,1726571076527,-473.21,0.0001274,2]
[338373017,1726571076551,-1300.0,0.000128,4]
[338373018,1726571076571,-167.0,0.00012811,2]
[338373019,1726571076593,-150.0,0.00012867,2]
[338373020,1726571076613,-3000.0,0.0001287,2]
[338373021,1726571076635,-2383.003056,0.0001287,2]
[338373022,1726571111072,-150.0,0.00012702,2]
[338373023,1726571111101,-150.0,0.00012709,2]
[338373024,1726571111127,-150.0,0.00012733,2]
[338373025,1726571111157,-150.0,0.00012734,2]
[338373026,1726571111182,-150.0,0.00012738,2]
[338373027,1726571111207,-150.0,0.00012752,2]
[338373028,1726571111233,-150.0,0.00012755,2]
[338373029,1726571111259,-150.0,0.00012756,2]
[338373030,1726571111284,-150.0,0.00012771,2]
[338373031,1726571111309,-150.0,0.00012773,2]
[338373032,1726571111335,-150.0,0.00012773,2]
[338373033,1726571111361,-150.0,0.00012813,2]
[338373034,1726571111387,-150.0,0.00012819,2]
[338373035,1726571111413,-150.0,0.00012824,2]
[338373036,1726571111438,-150.0,0.0001283,2]
[338373037,1726571111461,-237.03711621,0.00012865,2]
[338373038,1726571111484,-616.996944,0.0001287,2]
[338373039,1726571111511,-150.0,0.00012876,2]
[338373040,1726571111536,-150.0,0.00012879,2]
[338373041,1726571111561,-150.0,0.00012883,2]
[338373042,1726571111591,-150.0,0.00012885,2]
[338373043,1726571111618,-150.0,0.00012889,2]
[338373044,1726571111642,-3000.0,0.0001289,2]
[338373045,1726571111668,-150.0,0.00012892,2]
[338373046,1726571111691,-302.39784086,0.000129,2]
[338373047,1726571111717,-176.0064836,0.000129,2]
[338373048,1726571111739,-363.55146632,0.000129,2]
[338373049,1726571111762,-150.99,0.000129,2]
[338373050,1726571111784,-499.99,0.000129,2]
[338373051,1726571111806,-316.31697603,0.000129,2]
[338373052,1726571111834,-150.0,0.00012913,2]
[338373053,1726571111862,-150.0,0.00012918,2]
[338373054,1726571111888,-150.0,0.00012929,2]
[338373055,1726571111910,-299.99,0.0001295,2]
[338373056,1726571111937,-150.0,0.00012958,2]
[338373057,1726571111964,-150.0,0.00012961,2]
[338373058,1726571111992,-136.72317298,0.00012967,2]
[338373059,1726571141893,840.0,0.00012049,2]
[338373060,1726571157245,452.09,0.00010099,2]
[338373061,1726571157896,452.09,0.00012363,2]
[338373062,1726571180993,371.22,0.00011811,2]
[338373064,1726571288110,155.69,0.00010959,2]
[338373065,1726571344283,250.0,0.00011811,2]
[338373071,1726571392643,-1311.92878633,0.00012635,2]
[338373094,1726571432290,-24.05378367,0.00012635,2]
[338373095,1726571432300,-150.0,0.00012699,2]
[338373096,1726571432309,-150.0,0.000127,2]
[338373097,1726571432319,-150.0,0.00012702,2]
[338373098,1726571432328,-150.0,0.00012704,2]
[338373099,1726571432344,-150.0,0.00012704,2]
[338373100,1726571432354,-150.0,0.00012706,2]
[338373101,1726571432363,-150.0,0.00012707,2]
[338373102,1726571432372,-150.0,0.0001271,2]
[338373103,1726571432382,-150.0,0.00012712,2]
[338373104,1726571432391,-150.0,0.00012712,2]
[338373105,1726571432401,-150.0,0.0001272,2]
[338373106,1726571432411,-150.0,0.00012726,2]
[338373107,1726571432421,-150.0,0.0001273,2]
[338373108,1726571432431,-150.0,0.00012735,2]
[338373109,1726571432440,-150.0,0.00012736,2]
[338373110,1726571432450,-150.0,0.00012738,2]
[338373111,1726571432459,-150.0,0.00012739,2]
[338373112,1726571432468,-150.0,0.00012739,2]
[338373113,1726571432478,-150.0,0.00012742,2]
[338373114,1726571432488,-150.0,0.00012742,2]
[338373115,1726571432498,-150.0,0.00012746,2]
[338373116,1726571432509,-150.0,0.00012751,2]
[338373117,1726571432519,-150.0,0.00012753,2]
[338373118,1726571432529,-150.0,0.00012755,2]
[338373119,1726571432539,-150.0,0.00012757,2]
[338373120,1726571432548,-1500.0,0.00012758,2]
[338373121,1726571432559,-150.0,0.00012758,2]
[338373122,1726571432569,-150.0,0.00012759,2]
[338373123,1726571432579,-150.0,0.00012767,2]
[338373124,1726571432589,-300.0,0.00012767,2]
[338373125,1726571432598,-150.0,0.00012775,2]
[338373126,1726571432608,-150.0,0.0001278,2]
[338373127,1726571432617,-150.0,0.00012785,2]
[338373128,1726571432627,-150.0,0.00012788,2]
[338373129,1726571432636,-474.17356216,0.00012788,2]
[338373131,1726571432648,-300.75376989,0.00012788,2]
[338373132,1726571432661,-725.07266795,0.00012788,2]
[338373134,1726571432670,-150.0,0.00012789,2]
[338373136,1726571432680,-150.0,0.00012789,2]
[338373138,1726571432689,-150.0,0.00012792,2]
[338373140,1726571432699,-150.0,0.00012793,2]
[338373141,1726571432708,-1043.28860515,0.00012795,2]
[338373142,1726571432719,-903.92013879,0.00012795,2]
[338373143,1726571432754,-3190.96495606,0.00012795,2]
[338373144,1726571432764,-150.0,0.00012797,2]
[338373145,1726571432773,-150.0,0.00012799,2]
[338373146,1726571432782,-300.0,0.000128,4]
[338373147,1726571432792,-7594.8912,0.000128,2]
[338373148,1726571432801,-3343.0973,0.000128,2]
[338373149,1726571432810,-689.2802,0.000128,2]
[338373150,1726571432819,-127.88044354,0.000128,2]
[338373151,1726571432830,-957.14045646,0.000128,2]
[338373152,1726571432851,-5707.528,0.000128,2]
[338373153,1726571432860,-4010.1616,0.000128,2]
[338373154,1726571432869,-18544.46379463,0.000128,2]
[338373155,1726571432880,-734.6075021,0.000128,2]
[338373156,1726571432905,-1160.3319798,0.000128,2]
[338373157,1726571432917,-500.0,0.000128,2]
[338373158,1726571432928,-500.0,0.000128,2]
[338373159,1726571432940,-2300.0,0.000128,2]
[338373160,1726571432951,-836.89298034,0.000128,2]
[338373161,1726571432965,-5553.3473639,0.000128,2]
[338373167,1726571438756,-10873.60322576,0.000128,2]
[338373168,1726571438774,-3572.75652903,0.000128,2]
[338373169,1726571438810,-14041.59153085,0.000128,2]
[338373170,1726571438821,-1327.24347097,0.000128,2]
[338373171,1726571438832,-14153.797,0.000128,2]
[338373172,1726571440302,-25901.36462262,0.000128,2]
[338373173,1726571440311,-943.3389,0.000128,2]
[338373174,1726571440321,-150.0,0.00012803,2]
[338373175,1726571440331,-150.0,0.00012808,2]
[338373176,1726571440341,-150.0,0.00012815,2]
[338373178,1726571440351,-150.0,0.00012821,2]
[338373179,1726571440646,-150.0,0.00012827,2]
[338373180,1726571440658,-150.0,0.00012834,2]
[338373181,1726571440668,-150.0,0.00012835,2]
[338373182,1726571440678,-150.0,0.00012836,2]
[338373183,1726571440691,-1015.37368057,0.00012838,2]
[338373184,1726571440701,-150.0,0.00012838,2]
[338373185,1726571440711,-150.0,0.00012839,2]
[338373186,1726571440720,-1500.0,0.0001284,2]
[338373187,1726571440731,-150.0,0.00012841,2]
[338373188,1726571440741,-150.0,0.00012846,2]
[338373189,1726571440752,-150.0,0.00012847,2]
[338373190,1726571440762,-150.0,0.00012853,2]
[338373191,1726571440772,-150.0,0.00012853,2]
[338373192,1726571440781,-150.0,0.00012856,2]
[338373193,1726571440791,-150.0,0.00012857,2]
[338373194,1726571440800,-150.0,0.00012857,2]
[338373195,1726571440809,-150.0,0.00012858,2]
[338373196,1726571440819,-150.0,0.0001286,2]
[338373197,1726571440829,-150.0,0.00012861,2]
[338373198,1726571440838,-150.0,0.00012864,2]
[338373199,1726571440849,-150.0,0.00012867,2]
[338373200,1726571440859,-150.0,0.0001287,2]
[338373201,1726571440868,-872.82011,0.0001287,2]
[338373202,1726571440878,-150.0,0.00012877,2]
[338373203,1726571440887,-150.0,0.00012884,2]
[338373204,1726571440897,-150.0,0.00012892,2]
[338373205,1726571440907,-150.0,0.00012895,2]
[338373206,1726571440916,-245000.0,0.000129,2]
[338373207,1726571440926,-600.0,0.000129,4]
[338373208,1726571440935,-150.0,0.00012901,2]
[338373209,1726571440944,-150.0,0.00012902,2]
[338373210,1726571440954,-150.0,0.00012906,2]
[338373211,1726571440963,-150.0,0.00012909,2]
[338373212,1726571440973,-150.0,0.00012918,2]
[338373213,1726571440982,-150.0,0.00012918,2]
[338373214,1726571440992,-150.0,0.00012919,2]
[338373215,1726571441002,-150.0,0.00012919,2]
[338373216,1726571441012,-150.0,0.00012927,2]
[338373217,1726571441021,-150.0,0.00012929,2]
[338373218,1726571441032,-150.0,0.00012935,2]
[338373219,1726571441042,-150.0,0.00012937,2]
[338373220,1726571441051,-150.0,0.00012942,2]
[338373221,1726571441061,-150.0,0.00012943,2]
[338373222,1726571441071,-150.0,0.00012944,2]
[338373223,1726571441081,-150.0,0.00012952,2]
[338373224,1726571441092,-150.0,0.00012956,2]
[338373225,1726571441101,-150.0,0.00012957,2]
[338373226,1726571441110,-150.0,0.00012957,2]
[338373227,1726571441120,-150.0,0.00012963,2]
[338373228,1726571441131,-13.27682702,0.00012967,2]
[338373229,1726571441141,-500.0,0.00012973,2]
[338373230,1726571441151,-501.17200511,0.00012973,2]
[338373231,1726571441161,-500.0,0.00012973,2]
[338373232,1726571441172,-500.0,0.00012999,2]
[338373233,1726571441181,-500.0,0.00012999,2]
[338373234,1726571441191,-435.46220744,0.00012999,2]
[338373235,1726571441201,-1070.50119497,0.00012999,3]
[338373236,1726571441211,-254.366,0.00012999,2]
[338373237,1726571441220,-1185743.83890415,0.00013,2]
[338373238,1726571441230,-5000.0,0.00013,2]
[338373239,1726571441240,-5000.0,0.00013,2]
[338373240,1726571441249,-20499.48,0.00013,2]
[338373241,1726571441258,-2000.0,0.00013,2]
[338373242,1726571441267,-200.0,0.00013,2]
[338373243,1726571441278,-4186.74992607,0.00013,2]
[338373244,1726571441288,-200.0,0.0001313,2]
[338373245,1726571441298,-302.39784084,0.00013171,2]
[338373246,1726571441309,-167.01,0.00013225,2]
[338373247,1726571441319,-158.4900986,0.0001329,2]
[338373248,1726571441329,-183.8906105,0.0001338,2]
[338373249,1726571441338,-302.39784084,0.00013443,2]
[338373250,1726571441349,-964.08,0.000135,2]
[338373251,1726571441359,-567.0,0.00013533,2]
[338373252,1726571441368,-840.0,0.00013555,2]
[338373253,1726571441377,-1379.28,0.00013699,2]
[338373254,1726571441388,-167.28,0.00013711,2]
[338373255,1726571441399,-302.39784084,0.00013714,2]
[338373256,1726571441409,-1070.50119497,0.00013799,5]
[338373257,1726571441419,-500.0,0.00013799,2]
[338373258,1726571441429,-470.63448476,0.00013799,2]
[338373259,1726571441438,-362661.222463,0.000138,2]
[338373260,1726571441449,-200.0,0.00013855,2]
[338373261,1726571441458,-183.42180179,0.00013873,2]
[338373262,1726571441468,-89583.2138786,0.000139,2]
[338373263,1726571441478,-900.0,0.000139,5]
[338373264,1726571441488,-345677.112705,0.000139,2]
[338373265,1726571441498,-196.29,0.00013972,2]
[338373266,1726571441508,-173.0,0.00013973,2]
[338373267,1726571441518,-302.39784084,0.00013986,2]
[338373268,1726571441527,-173.0,0.00014,2]
[338373269,1726571441537,-5000.0,0.00014,2]
[338373270,1726571441547,-5000.0,0.00014,2]
[338373271,1726571441556,-420.0,0.00014004,2]
[338373272,1726571441567,-257.61,0.00014012,2]
[338373273,1726571441579,-1167.838362,0.00014028,2]
[338373274,1726571441592,-167.54,0.00014105,2]
[338373275,1726571441603,-524.17,0.00014149,2]
[338373276,1726571441612,-359.0,0.000142,2]
[338373277,1726571441622,-227.0,0.000142,2]
[338373278,1726571441632,-1200.0,0.000142,5]
[338373279,1726571441642,-212.906764,0.00014247,2]
[338373280,1726571441653,-302.39784084,0.00014257,2]
[338373281,1726571441665,-1600.0,0.000143,5]
[338373282,1726571441675,-150.0,0.00014377,2]
[338373283,1726571441684,-907.063,0.00014377,2]
[338373284,1726571441694,-173.0,0.00014384,2]
[338373285,1726571441703,-1379.28,0.00014384,2]
[338373286,1726571441712,-300.0,0.000144,5]
[338373287,1726571441722,-300.0,0.000145,5]
[338373288,1726571441731,-302.39784084,0.00014529,2]
[338373289,1726571441740,-11144.24,0.00014538,2]
[338373290,1726571441750,-150.0,0.00014567,2]
[338373291,1726571441760,-150.0,0.00014575,2]
[338373292,1726571441769,-162.1973949,0.00014575,2]
[338373293,1726571441778,-1262.0,0.0001458,2]
[338373294,1726571441788,-294.03,0.0001458,2]
[338373295,1726571441797,-810.0,0.0001458,2]
[338373296,1726571441808,-158.383,0.0001458,2]
[338373297,1726571441818,-932.0,0.0001458,2]
[338373298,1726571441827,-438.223,0.0001458,2]
[338373299,1726571441836,-150.0,0.00014587,2]
[338373300,1726571441845,-150.0,0.00014591,2]
[338373301,1726571441854,-1070.50119497,0.00014599,5]
[338373302,1726571441865,-48027.37281164,0.000146,2]
[338373303,1726571441875,-505.1942827,0.000146,7]
[338373304,1726571441885,-300.0,0.000146,5]
[338373305,1726571441895,-1142.11017218,0.00014602,2]
[338373306,1726571441905,-1131.61312068,0.00014602,2]
[338373307,1726571441915,-150.0,0.00014612,2]
[338373308,1726571441926,-150.0,0.00014616,2]
[338373309,1726571441947,-150.0,0.00014625,2]
[338373310,1726571441957,-150.0,0.00014626,2]
[338373311,1726571441967,-452.09,0.00014627,2]
[338373312,1726571441976,-150.0,0.00014639,2]
[338373313,1726571441987,-150.0,0.00014654,2]
[338373314,1726571441997,-150.0,0.00014657,2]
[338373315,1726571442005,-150.0,0.00014657,2]
[338373316,1726571442014,-150.0,0.00014659,2]
[338373317,1726571442024,-150.0,0.0001466,2]
[338373318,1726571442036,-150.0,0.00014663,2]
[338373319,1726571442045,-150.0,0.00014667,2]
[338373320,1726571442055,-150.0,0.00014668,2]
[338373321,1726571442066,-150.0,0.00014672,2]
[338373322,1726571442075,-150.0,0.00014672,2]
[338373323,1726571442086,-150.0,0.00014674,2]
[338373324,1726571442096,-150.0,0.00014694,2]
[338373325,1726571442105,-122836.26152303,0.000147,2]
[338373326,1726571442116,-303.46,0.000147,2]
[338373327,1726571442126,-1010.96,0.000147,2]
[338373328,1726571442136,-300.0,0.000147,5]
[338373329,1726571442145,-150.0,0.0001471,2]
[338373330,1726571442155,-150.0,0.00014712,2]
[338373331,1726571442166,-150.0,0.00014717,2]
[338373332,1726571442175,-150.0,0.00014718,2]
[338373333,1726571442184,-150.0,0.00014719,2]
[338373334,1726571442195,-150.0,0.00014721,2]
[338373335,1726571442204,-150.0,0.00014726,2]
[338373336,1726571442214,-150.0,0.00014727,2]
[338373337,1726571442224,-150.0,0.0001473,2]
[338373338,1726571442234,-150.0,0.00014731,2]
[338373339,1726571442244,-150.0,0.00014732,2]
[338373340,1726571442253,-150.0,0.00014741,2]
[338373341,1726571442263,-150.0,0.0001475,2]
[338373342,1726571442274,-150.0,0.00014753,2]
[338373343,1726571442284,-150.0,0.00014754,2]
[338373344,1726571442294,-150.0,0.00014756,2]
[338373345,1726571442303,-150.0,0.00014763,2]
[338373346,1726571442313,-150.0,0.00014765,2]
[338373347,1726571442323,-162.1973949,0.00014767,2]
[338373348,1726571442332,-150.0,0.00014768,2]
[338373349,1726571442341,-150.0,0.00014768,2]
[338373350,1726571442351,-150.0,0.00014769,2]
[338373351,1726571442361,-138352.3626917,0.0001478,2]
[338373352,1726571442370,-150.0,0.00014782,2]
[338373353,1726571442379,-150.0,0.00014786,2]
[338373354,1726571442389,-150.0,0.00014788,2]
[338373355,1726571442398,-58821.03059862,0.0001479,2]
[338373356,1726571442408,-3000.0,0.000148,2]
[338373357,1726571442417,-302.39784084,0.000148,2]
[338373358,1726571442427,-7500.0,0.000148,2]
[338373359,1726571442438,-783.544154,0.000148,2]
[338373360,1726571442448,-838.0,0.000148,2]
[338373361,1726571442458,-600.0,0.000148,5]
[338373362,1726571442468,-150.0,0.00014807,2]
[338373363,1726571442477,-150.0,0.00014811,2]
[338373364,1726571442487,-150.0,0.00014812,2]
[338373365,1726571442496,-150.0,0.00014813,2]
[338373366,1726571442505,-150.0,0.00014823,2]
[338373367,1726571442515,-1000.0,0.00014825,2]
[338373368,1726571442524,-450.4735,0.00014825,2]
[338373369,1726571442534,-150.0,0.00014834,2]
[338373370,1726571442544,-150.0,0.00014837,2]
[338373371,1726571442553,-500.94262012,0.00014873,2]
[338373372,1726571442562,-500.0,0.00014873,2]
[338373373,1726571442572,-1199.91918686,0.00014899,5]
[338373374,1726571442584,-1199.91918685,0.00014899,5]
[338373375,1726571442594,-474.91456684,0.00014899,2]
[338373376,1726571442604,-1070.50119497,0.00014899,5]
[338373377,1726571442613,-1070.50119497,0.00014899,5]
[338373378,1726571442623,-1070.50119498,0.00014899,5]
[338373379,1726571442633,-1070.50119497,0.00014899,5]
[338373380,1726571442642,-1070.50119497,0.00014899,5]
[338373381,1726571442652,-1070.50119497,0.00014899,5]
[338373382,1726571442662,-1070.50119497,0.00014899,5]
[338373383,1726571442671,-1070.50119497,0.00014899,5]
[338373384,1726571442680,-3475514.63068152,0.000149,2]
[338373385,1726571442695,-2946.68335152,0.000149,2]
[338373386,1726571442706,-3593.47834983,0.000149,2]
[338373387,1726571442718,-1746.3324078,0.000149,2]
[338373388,1726571442729,-4170.03465609,0.000149,2]
[338373389,1726571442741,-10400.0,0.000149,2]
[338373390,1726571442752,-10482.90893486,0.000149,2]
[338373391,1726571442764,-88018.09762873,0.000149,2]
[338373392,1726571442775,-1883.92436493,0.000149,2]
[338373393,1726571442786,-573.37954002,0.000149,2]
[338373394,1726571442798,-8342.69800403,0.000149,2]
[338373395,1726571442830,-465.13,0.000149,2]
[338373396,1726571442844,-398.62975953,0.000149,2]
[338373400,1726571443275,-1051.13618275,0.000149,2]
[338373401,1726571443286,-1399.79399091,0.000149,2]
[338373402,1726571443470,-150.0,0.00014651,2]
[338373403,1726571443480,-28710.59698709,0.000149,2]
[338373404,1726571443491,-354778.54513999,0.000149,2]
[338373405,1726571443502,-1009.71667059,0.000149,2]
[338373461,1726571444446,-150.0,0.00014563,2]
[338373462,1726571444456,-150.0,0.00014583,2]
[338373463,1726571444467,-150.0,0.00014585,2]
[338373464,1726571444476,-150.0,0.00014592,2]
[338373465,1726571444486,-150.0,0.00014597,2]
[338373466,1726571444496,-150.0,0.00014605,2]
[338373467,1726571444506,-150.0,0.00014617,2]
[338373468,1726571444516,-150.0,0.00014621,2]
[338373469,1726571444527,-150.0,0.00014632,2]
[338373470,1726571444537,-150.0,0.00014639,2]
[338373471,1726571444547,-150.0,0.00014641,2]
[338373472,1726571444557,-150.0,0.00014644,2]
[338373473,1726571444568,-150.0,0.00014657,2]
[338373474,1726571444578,-150.0,0.00014669,2]
[338373475,1726571444594,-150.0,0.0001467,2]
[338373476,1726571444604,-150.0,0.00014671,2]
[338373477,1726571444614,-150.0,0.00014684,2]
[338373478,1726571444623,-150.0,0.00014695,2]
[338373479,1726571444634,-150.0,0.00014698,2]
[338373480,1726571444644,-150.0,0.00014706,2]
[338373481,1726571444653,-150.0,0.00014711,2]
[338373482,1726571444666,-150.0,0.00014713,2]
[338373483,1726571444676,-150.0,0.00014716,2]